fUSD/lending_fUSD_20250716
["ID","MTS","AMOUNT","RATE_DAILY","PERIOD"]
[372499235,1752663118439,-465.62,0.00022602,2]
[372499236,1752663118449,-730.18,0.00022602,2]
[372499237,1752663118459,-1203.47,0.00022602,2]
[372499238,1752663118469,-642.34,0.00022602,2]
[372499239,1752663118479,-1314.79,0.00022602,2]
[372499240,1752663118489,-1198.89,0.00022602,2]
[372499241,1752663118499,-887.6,0.00022602,2]
[372499242,1752663118509,-460.0,0.00022602,2]
[372499243,1752663118519,-1011.16,0.00022602,2]
[372499244,1752663118528,-460.0,0.00022602,2]
[372499245,1752663118538,-1132.15,0.00022602,2]
[372499246,1752663118547,-250.0839578,0.00022602,2]
[372499247,1752663118557,-903.29,0.00022602,2]
[372499248,1752663118567,-460.0,0.00022602,2]
[372499249,1752663118577,-2880.76,0.00022602,2]
[372499250,1752663118586,-994.92,0.00022602,2]
[372499251,1752663118596,-684.79,0.00022602,2]
[372499252,1752663118606,-1024.12,0.00022602,2]
[372499253,1752663118616,-1858.32,0.00022602,2]
[372499254,1752663118626,-460.0,0.00022602,2]
[372499255,1752663118635,-1863.81,0.00022602,2]
[372499256,1752663118645,-460.0,0.00022602,2]
[372499257,1752663118655,-3055.14,0.00022602,2]
[372499258,1752663118664,-460.0,0.00022602,2]
[372499259,1752663118674,-570.24,0.00022602,2]
[372499260,1752663118683,-612.03,0.00022602,2]
[372499261,1752663118693,-460.0,0.00022602,2]
[372499262,1752663118703,-460.0,0.00022602,2]
[372499263,1752663118712,-3225.29,0.00022602,2]
[372499264,1752663118724,-460.0,0.00022602,2]
[372499265,1752663118733,-708.79,0.00022602,2]
[372499266,1752663118742,-799.53,0.00022602,2]
[372499267,1752663118754,-1452.54,0.00022602,2]
[372499268,1752663118764,-2151.45,0.00022602,2]
[372499269,1752663118774,-967.0,0.00022602,2]
[372499270,1752663118784,-460.0,0.00022602,2]
[372499271,1752663118793,-909.92,0.00022602,2]
[372499272,1752663118803,-460.0,0.00022602,2]
[372499273,1752663118814,-460.0,0.00022602,2]
[372499274,1752663118824,-574.66,0.00022602,2]
[372499275,1752663118834,-486.79387456,0.00022602,2]
[372499276,1752663118844,-18257.49,0.00022602,2]
[372499277,1752663118854,-460.0,0.00022602,2]
[372499278,1752663118864,-1366.55,0.00022602,2]
[372499279,1752663118875,-4396.18,0.00022602,2]
[372499280,1752663118884,-460.0,0.00022602,2]
[372499281,1752663118895,-530.09,0.00022602,2]
[372499282,1752663118905,-2712.48,0.00022602,2]
[372499283,1752663118914,-1243.92,0.00022602,2]
[372499284,1752663118924,-508.0,0.00022602,2]
[372499285,1752663118934,-5268.98,0.00022602,2]
[372499286,1752663118944,-661.22,0.00022602,2]
[372499287,1752663118954,-558.0,0.00022602,2]
[372499288,1752663118967,-1950.3,0.00022602,2]
[372499289,1752663118977,-460.0,0.00022602,2]
[372499290,1752663118987,-802.89,0.00022602,2]
[372499291,1752663118998,-1009.57,0.00022602,2]
[372499292,1752663119008,-806.79,0.00022602,2]
[372499293,1752663119018,-548.97,0.00022602,2]
[372499294,1752663119028,-460.0,0.00022602,2]
[372499295,1752663119038,-267.06594602,0.00022602,2]
[372499296,1752663119047,-1016.81,0.00022602,2]
[372499297,1752663119057,-716.51,0.00022602,2]
[372499298,1752663119067,-1807.77,0.00022602,2]
[372499299,1752663119077,-3401.52,0.00022602,2]
[372499300,1752663119087,-460.0,0.00022602,2]
[372499301,1752663119096,-460.0,0.00022602,2]
[372499302,1752663119106,-460.0,0.00022602,2]
[372499303,1752663119115,-460.0,0.00022602,2]
[372499304,1752663119265,-1577.99,0.00022602,2]
[372499305,1752663119278,-1090.35,0.00022602,2]
[372499306,1752663119289,-2180.23,0.00022602,2]
[372499307,1752663119298,-993.34,0.00022602,2]
[372499308,1752663119308,-2435.35,0.00022602,2]
[372499309,1752663119318,-460.0,0.00022602,2]
[372499310,1752663119329,-932.03,0.00022602,2]
[372499311,1752663119339,-9495.76,0.00022602,2]
[372499312,1752663119349,-6460.58,0.00022602,2]
[372499313,1752663119359,-2366.57,0.00022602,2]
[372499314,1752663119368,-460.0,0.00022602,2]
[372499315,1752663119378,-635.82,0.00022602,2]
[372499316,1752663119388,-1384.4,0.00022602,2]
[372499317,1752663119399,-460.0,0.00022602,2]
[372499318,1752663119409,-460.0,0.00022602,2]
[372499319,1752663119419,-2004.78,0.00022602,2]
[372499320,1752663119428,-3219.3,0.00022602,2]
[372499321,1752663119438,-1405.03,0.00022602,2]
[372499322,1752663119448,-396.71348892,0.00022602,2]
[372499323,1752663119458,-689.97,0.00022602,2]
[372499324,1752663119468,-460.0,0.00022602,2]
[372499325,1752663119477,-460.0,0.00022602,2]
[372499326,1752663119487,-660.19,0.00022602,2]
[372499327,1752663119497,-460.0,0.00022602,2]
[372499328,1752663119509,-403.81,0.00022602,2]
[372499329,1752663119519,-460.0,0.00022602,2]
[372499330,1752663119529,-460.0,0.00022602,2]
[372499331,1752663119539,-4073.22,0.00022602,2]
[372499332,1752663119550,-829.45,0.00022602,2]
[372499333,1752663119560,-1482.8,0.00022602,2]
[372499334,1752663119570,-1186.85,0.00022602,2]
[372499335,1752663119579,-1224.36,0.00022602,2]
[372499336,1752663119589,-571.95,0.00022602,2]
[372499337,1752663119599,-1846.22,0.00022602,2]
[372499338,1752663119609,-151.0,0.00022602,2]
[372499339,1752663119619,-460.0,0.00022602,2]
[372499340,1752663119628,-2508.45,0.00022602,2]
[372499341,1752663119638,-460.0,0.00022602,2]
[372499342,1752663119649,-460.0,0.00022602,2]
[372499343,1752663119659,-605.83,0.00022602,2]
[372499344,1752663119670,-1023.53,0.00022602,2]
[372499345,1752663119680,-2046.51,0.00022602,2]
[372499346,1752663119691,-5496.82,0.00022602,2]
[372499347,1752663119701,-1729.36,0.00022602,2]
[372499348,1752663119711,-845.91,0.00022602,2]
[372499349,1752663119721,-460.0,0.00022602,2]
[372499350,1752663119730,-1153.38,0.00022602,2]
[372499351,1752663119740,-1471.4,0.00022602,2]
[372499352,1752663119749,-460.0,0.00022602,2]
[372499353,1752663119758,-460.0,0.00022602,2]
[372499354,1752663119769,-25686.63,0.00022602,2]
[372499355,1752663119779,-2265.87,0.00022602,2]
[372499356,1752663119788,-1804.24,0.00022602,2]
[372499357,1752663119798,-312.20081603,0.00022602,2]
[372499358,1752663119808,-460.0,0.00022602,2]
[372499359,1752663119818,-801.55,0.00022602,2]
[372499360,1752663119828,-667.91,0.00022602,2]
[372499361,1752663119837,-460.0,0.00022602,2]
[372499362,1752663119850,-460.0,0.00022602,2]
[372499363,1752663119862,-720.01,0.00022602,2]
[372499364,1752663119872,-460.0,0.00022602,2]
[372499365,1752663119882,-912.12,0.00022602,2]
[372499366,1752663119893,-2378.43,0.00022602,2]
[372499367,1752663119903,-1488.97,0.00022602,2]
[372499368,1752663119914,-693.6,0.00022602,2]
[372499369,1752663119923,-568.78,0.00022602,2]
[372499370,1752663119933,-2336.76,0.00022602,2]
[372499371,1752663119943,-1662.59,0.00022602,2]
[372499372,1752663119953,-834.17,0.00022602,2]
[372499373,1752663119963,-3608.17,0.00022602,2]
[372499374,1752663119973,-578.22,0.00022602,2]
[372499375,1752663119984,-468.55,0.00022602,2]
[372499376,1752663119995,-465.11,0.00022602,2]
[372499377,1752663120005,-590.67,0.00022602,2]
[372499378,1752663120015,-1551.69,0.00022602,2]
[372499379,1752663120025,-722.56,0.00022602,2]
[372499380,1752663120034,-460.0,0.00022602,2]
[372499381,1752663120044,-460.0,0.00022602,2]
[372499382,1752663120054,-4023.17,0.00022602,2]
[372499383,1752663120064,-517.03,0.00022602,2]
[372499384,1752663120074,-460.0,0.00022602,2]
[372499385,1752663120084,-3644.36,0.00022602,2]
[372499386,1752663120094,-4710.56,0.00022602,2]
[372499387,1752663120104,-546.65,0.00022602,2]
[372499388,1752663120114,-460.0,0.00022602,2]
[372499389,1752663120123,-460.0,0.00022602,2]
[372499390,1752663120133,-1375.33,0.00022602,2]
[372499391,1752663120145,-3437.5,0.00022602,2]
[372499392,1752663120155,-956.97,0.00022602,2]
[372499393,1752663120165,-460.0,0.00022602,2]
[372499394,1752663120175,-1086.94,0.00022602,2]
[372499395,1752663120187,-1882.13,0.00022602,2]
[372499396,1752663120205,-819.82,0.00022602,2]
[372499397,1752663120215,-533.59,0.00022602,2]
[372499398,1752663120226,-846.81,0.00022602,2]
[372499399,1752663120238,-10473.68,0.00022602,2]
[372499400,1752663120248,-460.0,0.00022602,2]
[372499401,1752663120260,-164.23687967,0.00022602,2]
[372499402,1752663120273,-1075.31,0.00022602,2]
[372499403,1752663120283,-10262.44,0.00022602,2]
[372499404,1752663120293,-460.0,0.00022602,2]
[372499405,1752663120305,-7641.39,0.00022602,2]
[372499406,1752663120318,-927.79,0.00022602,2]
[372499407,1752663120329,-9009.22,0.00022602,2]
[372499408,1752663120340,-460.0,0.00022602,2]
[372499409,1752663120349,-1305.47,0.00022602,2]
[372499410,1752663120360,-288.94614651,0.00022602,2]
[372499411,1752663120370,-6402.79,0.00022602,2]
[372499412,1752663120380,-999.84,0.00022602,2]
[372499413,1752663120390,-1048.05,0.00022602,2]
[372499414,1752663120400,-1145.26,0.00022602,2]
[372499415,1752663120410,-1618.81,0.00022602,2]
[372499416,1752663120419,-7522.89,0.00022602,2]
[372499417,1752663120429,-1085.51,0.00022602,2]
[372499418,1752663120439,-460.0,0.00022602,2]
[372499419,1752663120449,-985.55,0.00022602,2]
[372499420,1752663120458,-338.82372482,0.00022602,2]
[372499421,1752663120468,-7023.53,0.00022602,2]
[372499422,1752663120478,-699.45,0.00022602,2]
[372499423,1752663120488,-460.0,0.00022602,2]
[372499424,1752663120497,-460.0,0.00022602,2]
[372499425,1752663120506,-4907.65,0.00022602,2]
[372499426,1752663120517,-460.0,0.00022602,2]
[372499427,1752663120527,-4103.12,0.00022602,2]
[372499428,1752663120536,-460.0,0.00022602,2]
[372499429,1752663120546,-587.29,0.00022602,2]
[372499430,1752663120555,-805.39,0.00022602,2]
[372499431,1752663120565,-1101.08,0.00022602,2]
[372499432,1752663120574,-2334.85,0.00022602,2]
[372499433,1752663120583,-460.0,0.00022602,2]
[372499434,1752663120594,-1300.92,0.00022602,2]
[372499435,1752663120604,-1839.74,0.00022602,2]
[372499436,1752663120614,-7022.82,0.00022602,2]
[372499437,1752663120623,-460.0,0.00022602,2]
[372499438,1752663120632,-460.0,0.00022602,2]
[372499439,1752663120642,-460.0,0.00022602,2]
[372499440,1752663120652,-4783.75,0.00022602,2]
[372499441,1752663120663,-460.0,0.00022602,2]
[372499442,1752663120673,-574.7,0.00022602,2]
[372499443,1752663120682,-460.0,0.00022602,2]
[372499444,1752663120692,-11831.05,0.00022602,2]
[372499445,1752663120702,-5175.99,0.00022602,2]
[372499446,1752663120712,-460.0,0.00022602,2]
[372499447,1752663120722,-2063.66,0.00022602,2]
[372499448,1752663120732,-12650.62,0.00022602,2]
[372499449,1752663120742,-787.25,0.00022602,2]
[372499450,1752663120751,-1721.09,0.00022602,2]
[372499451,1752663120760,-609.0,0.00022602,2]
[372499452,1752663120769,-641.88,0.00022602,2]
[372499453,1752663120779,-460.0,0.00022602,2]
[372499454,1752663120788,-2321.93,0.00022602,2]
[372499455,1752663120797,-460.0,0.00022602,2]
[372499456,1752663120807,-460.0,0.00022602,2]
[372499457,1752663120818,-460.0,0.00022602,2]
[372499458,1752663120827,-1046.05,0.00022602,2]
[372499459,1752663120837,-2399.4,0.00022602,2]
[372499460,1752663120847,-1196.04,0.00022602,2]
[372499461,1752663120857,-5256.36,0.00022602,2]
[372499462,1752663120867,-570.67,0.00022602,2]
[372499463,1752663120876,-460.0,0.00022602,2]
[372499464,1752663120886,-460.0,0.00022602,2]
[372499465,1752663120896,-1199.05,0.00022602,2]
[372499466,1752663120906,-1873.93,0.00022602,2]
[372499467,1752663120916,-6048.28,0.00022602,2]
[372499468,1752663120926,-608.82,0.00022602,2]
[372499469,1752663120935,-647.56,0.00022602,2]
[372499470,1752663120947,-3826.55,0.00022602,2]
[372499471,1752663120956,-25853.72,0.00022602,2]
[372499472,1752663120965,-679.82,0.00022602,2]
[372499473,1752663120975,-460.0,0.00022602,2]
[372499474,1752663120985,-644.0,0.00022602,2]
[372499475,1752663120995,-4984.48,0.00022602,2]
[372499476,1752663121005,-1010.1,0.00022602,2]
[372499477,1752663121014,-587.74,0.00022602,2]
[372499478,1752663121023,-1216.26,0.00022602,2]
[372499479,1752663121032,-2657.96,0.00022602,2]
[372499480,1752663121042,-2675.67,0.00022602,2]
[372499481,1752663121051,-2707.25,0.00022602,2]
[372499482,1752663121061,-1531.63,0.00022602,2]
[372499483,1752663121070,-460.0,0.00022602,2]
[372499484,1752663121080,-460.0,0.00022602,2]
[372499485,1752663121089,-807.97,0.00022602,2]
[372499486,1752663121098,-460.0,0.00022602,2]
[372499487,1752663121108,-10398.73,0.00022602,2]
[372499488,1752663121118,-2892.99,0.00022602,2]
[372499489,1752663121127,-6155.9,0.00022602,2]
[372499490,1752663121137,-460.0,0.00022602,2]
[372499491,1752663121148,-3663.1,0.00022602,2]
[372499492,1752663121158,-2417.79,0.00022602,2]
[372499493,1752663121167,-783.37,0.00022602,2]
[372499494,1752663121188,-1645.27,0.00022602,2]
[372499495,1752663121200,-5760.76,0.00022602,2]
[372499496,1752663121210,-1156.71,0.00022602,2]
[372499497,1752663121219,-2977.53,0.00022602,2]
[372499498,1752663121230,-4994.77,0.00022602,2]
[372499499,1752663121241,-2707.06,0.00022602,2]
[372499500,1752663121250,-460.0,0.00022602,2]
[372499501,1752663121261,-828.48,0.00022602,2]
[372499502,1752663121271,-1737.41,0.00022602,2]
[372499503,1752663121281,-697.34,0.00022602,2]
[372499504,1752663121291,-1860.1,0.00022602,2]
[372499505,1752663121300,-618.42,0.00022602,2]
[372499506,1752663121309,-3082.79,0.00022602,2]
[372499507,1752663121322,-460.0,0.00022602,2]
[372499508,1752663121332,-763.37,0.00022602,2]
[372499509,1752663121341,-5360.04,0.00022602,2]
[372499510,1752663121351,-1544.88,0.00022602,2]
[372499511,1752663121361,-532.67,0.00022602,2]
[372499512,1752663121371,-566.67,0.00022602,2]
[372499513,1752663121380,-1351.27,0.00022602,2]
[372499514,1752663121389,-6960.91,0.00022602,2]
[372499515,1752663121400,-1854.73,0.00022602,2]
[372499516,1752663121409,-1871.79,0.00022602,2]
[372499517,1752663121419,-498.31,0.00022602,2]
[372499518,1752663121428,-935.71,0.00022602,2]
[372499519,1752663121438,-3727.42,0.00022602,2]
[372499520,1752663121447,-2952.62,0.00022602,2]
[372499521,1752663121456,-1210.46,0.00022602,2]
[372499522,1752663121466,-4520.63,0.00022602,2]
[372499523,1752663121475,-1354.22,0.00022602,2]
[372499524,1752663121484,-647.88,0.00022602,2]
[372499525,1752663121494,-460.0,0.00022602,2]
[372499526,1752663121503,-1674.69,0.00022602,2]
[372499527,1752663121514,-460.0,0.00022602,2]
[372499528,1752663121523,-1807.76,0.00022602,2]
[372499529,1752663121535,-544.05,0.00022602,2]
[372499530,1752663121544,-1562.68,0.00022602,2]
[372499531,1752663121554,-804.49,0.00022602,2]
[372499532,1752663121564,-460.0,0.00022602,2]
[372499533,1752663121574,-460.0,0.00022602,2]
[372499534,1752663121583,-460.0,0.00022602,2]
[372499535,1752663121593,-237.3574582,0.00022602,2]
[372499536,1752663121602,-2967.28,0.00022602,2]
[372499537,1752663121612,-619.88,0.00022602,2]
[372499538,1752663121622,-460.0,0.00022602,2]
[372499539,1752663121631,-4930.79,0.00022602,2]
[372499540,1752663121641,-1331.59,0.00022602,2]
[372499541,1752663121652,-460.0,0.00022602,2]
[372499542,1752663121661,-1756.27,0.00022602,2]
[372499543,1752663121671,-1372.2,0.00022602,2]
[372499544,1752663121680,-2884.75,0.00022602,2]
[372499545,1752663121690,-3471.77,0.00022602,2]
[372499546,1752663121699,-4338.23,0.00022602,2]
[372499547,1752663121709,-1048.9,0.00022602,2]
[372499548,1752663121719,-1304.13,0.00022602,2]
[372499549,1752663121728,-337.82610892,0.00022602,2]
[372499550,1752663121738,-861.69,0.00022602,2]
[372499551,1752663121747,-189.48239009,0.00022602,2]
[372499552,1752663121758,-589.94,0.00022602,2]
[372499553,1752663121768,-2011.92,0.00022602,2]
[372499554,1752663121779,-460.0,0.00022602,2]
[372499555,1752663121790,-771.65,0.00022602,2]
[372499556,1752663121800,-5916.53,0.00022602,2]
[372499557,1752663121810,-469.09,0.00022602,2]
[372499558,1752663121820,-460.0,0.00022602,2]
[372499559,1752663121830,-18520.14,0.00022602,2]
[372499560,1752663121840,-460.0,0.00022602,2]
[372499561,1752663121849,-1896.91,0.00022602,2]
[372499562,1752663121859,-1267.95,0.00022602,2]
[372499563,1752663121869,-1000.0,0.00022602,2]
[372499564,1752663121879,-6378.4,0.00022602,2]
[372499565,1752663121890,-624.77,0.00022602,2]
[372499566,1752663121901,-6594.98,0.00022602,2]
[372499567,1752663121910,-4665.3,0.00022602,2]
[372499568,1752663121920,-4540.32,0.00022602,2]
[372499569,1752663121930,-9546.24,0.00022602,2]
[372499570,1752663121940,-1113.8,0.00022602,2]
[372499571,1752663121950,-460.0,0.00022602,2]
[372499572,1752663121959,-460.0,0.00022602,2]
[372499573,1752663121969,-460.0,0.00022602,2]
[372499574,1752663121979,-575.28,0.00022602,2]
[372499575,1752663121989,-4658.6,0.00022602,2]
[372499576,1752663121999,-1746.59,0.00022602,2]
[372499577,1752663122009,-2605.38,0.00022602,2]
[372499578,1752663122018,-460.0,0.00022602,2]
[372499579,1752663122027,-484.92,0.00022602,2]
[372499580,1752663122037,-2501.59,0.00022602,2]
[372499581,1752663122047,-7774.07,0.00022602,2]
[372499582,1752663122056,-570.76,0.00022602,2]
[372499583,1752663122067,-2763.84,0.00022602,2]
[372499584,1752663122076,-5927.89,0.00022602,2]
[372499585,1752663122086,-3322.94,0.00022602,2]
[372499586,1752663122095,-460.0,0.00022602,2]
[372499587,1752663122105,-460.0,0.00022602,2]
[372499588,1752663122115,-1367.25,0.00022602,2]
[372499589,1752663122124,-7494.33,0.00022602,2]
[372499590,1752663122134,-1011.46,0.00022602,2]
[372499591,1752663122143,-16963.12,0.00022602,2]
[372499592,1752663122153,-2065.11,0.00022602,2]
[372499593,1752663122162,-5953.02,0.00022602,2]
[372499594,1752663122172,-3212.42,0.00022602,2]
[372499595,1752663122183,-21344.53,0.00022602,2]
[372499596,1752663122196,-5650.16,0.00022602,2]
[372499597,1752663122205,-1014.23,0.00022602,2]
[372499598,1752663122215,-476.32,0.00022602,2]
[372499599,1752663122225,-2587.67,0.00022602,2]
[372499600,1752663122234,-5415.43,0.00022602,2]
[372499601,1752663122244,-4486.27,0.00022602,2]
[372499602,1752663122254,-326.99629096,0.00022602,2]
[372499603,1752663122263,-1538.9,0.00022602,2]
[372499604,1752663122273,-635.25,0.00022602,2]
[372499605,1752663122283,-2685.11,0.00022602,2]
[372499606,1752663122293,-2744.51,0.00022602,2]
[372499607,1752663122303,-1047.77,0.00022602,2]
[372499608,1752663122313,-460.0,0.00022602,2]
[372499609,1752663122323,-1189.82,0.00022602,2]
[372499610,1752663122333,-802.61,0.00022602,2]
[372499611,1752663122344,-460.0,0.00022602,2]
[372499612,1752663122354,-504.66,0.00022602,2]
[372499613,1752663122363,-167.81122,0.00022602,2]
[372499614,1752663122373,-573.37,0.00022602,2]
[372499615,1752663122383,-8020.77,0.00022602,2]
[372499616,1752663122393,-5279.75,0.00022602,2]
[372499617,1752663122403,-1356.57,0.00022602,2]
[372499618,1752663122412,-460.0,0.00022602,2]
[372499619,1752663122422,-1204.94,0.00022602,2]
[372499620,1752663122432,-460.0,0.00022602,2]
[372499621,1752663122442,-32484.29,0.00022602,2]
[372499622,1752663122451,-1007.81,0.00022602,2]
[372499623,1752663122461,-19195.94,0.00022602,2]
[372499624,1752663122472,-676.02,0.00022602,2]
[372499625,1752663122482,-3572.47,0.00022602,2]
[372499626,1752663122491,-460.0,0.00022602,2]
[372499627,1752663122501,-460.0,0.00022602,2]
[372499628,1752663122511,-1061.14,0.00022602,2]
[372499629,1752663122520,-684.08,0.00022602,2]
[372499630,1752663122530,-14730.83,0.00022602,2]
[372499631,1752663122540,-3566.5,0.00022602,2]
[372499632,1752663122550,-3262.8,0.00022602,2]
[372499633,1752663122559,-460.0,0.00022602,2]
[372499634,1752663122569,-612.3,0.00022602,2]
[372499635,1752663122578,-460.0,0.00022602,2]
[372499636,1752663122587,-1225.77,0.00022602,2]
[372499637,1752663122598,-1692.42,0.00022602,2]
[372499638,1752663122607,-628.29,0.00022602,2]
[372499639,1752663122617,-22442.02,0.00022602,2]
[372499640,1752663122627,-5682.68,0.00022602,2]
[372499641,1752663122636,-570.77588292,0.00022602,2]
[372499642,1752663122645,-460.0,0.00022602,2]
[372499643,1752663122655,-3509.68,0.00022602,2]
[372499644,1752663122665,-460.0,0.00022602,2]
[372499645,1752663122674,-686.39,0.00022602,2]
[372499646,1752663122684,-1807.34,0.00022602,2]
[372499647,1752663122694,-4110.38,0.00022602,2]
[372499648,1752663122704,-460.0,0.00022602,2]
[372499649,1752663122714,-1598.24,0.00022602,2]
[372499650,1752663122724,-460.0,0.00022602,2]
[372499651,1752663122733,-1745.31,0.00022602,2]
[372499652,1752663122743,-949.55,0.00022602,2]
[372499653,1752663122753,-4959.45,0.00022602,2]
[372499654,1752663122763,-1841.85,0.00022602,2]
[372499655,1752663122772,-454.63931786,0.00022602,2]
[372499656,1752663122782,-2472.8,0.00022602,2]
[372499657,1752663122792,-3547.98,0.00022602,2]
[372499658,1752663122802,-58694.54,0.00022602,2]
[372499659,1752663122811,-603.39,0.00022602,2]
[372499660,1752663122822,-2993.43,0.00022602,2]
[372499661,1752663122832,-5628.71,0.00022602,2]
[372499662,1752663122841,-1447.83,0.00022602,2]
[372499663,1752663122851,-460.0,0.00022602,2]
[372499664,1752663122860,-1683.09,0.00022602,2]
[372499665,1752663122870,-1096.81,0.00022602,2]
[372499666,1752663122879,-2285.96,0.00022602,2]
[372499667,1752663122889,-483.36,0.00022602,2]
[372499668,1752663122899,-460.0,0.00022602,2]
[372499669,1752663122911,-1319.97,0.00022602,2]
[372499670,1752663122921,-5147.01,0.00022602,2]
[372499671,1752663122930,-1144.35,0.00022602,2]
[372499672,1752663122941,-8010.56,0.00022602,2]
[372499673,1752663122951,-639.1,0.00022602,2]
[372499674,1752663122960,-739.23,0.00022602,2]
[372499675,1752663122970,-460.0,0.00022602,2]
[372499676,1752663122980,-6205.36,0.00022602,2]
[372499677,1752663122990,-510.71,0.00022602,2]
[372499678,1752663123000,-2249.11,0.00022602,2]
[372499679,1752663123009,-460.0,0.00022602,2]
[372499680,1752663123019,-4164.71,0.00022602,2]
[372499681,1752663123030,-6769.38,0.00022602,2]
[372499682,1752663123040,-2022.49,0.00022602,2]
[372499683,1752663123050,-460.0,0.00022602,2]
[372499684,1752663123061,-1115.74,0.00022602,2]
[372499685,1752663123072,-442.46147039,0.00022602,2]
[372499686,1752663123082,-460.0,0.00022602,2]
[372499687,1752663123092,-485.08,0.00022602,2]
[372499688,1752663123103,-460.0,0.00022602,2]
[372499689,1752663123113,-795.42,0.00022602,2]
[372499690,1752663123123,-2986.83,0.00022602,2]
[372499691,1752663123134,-460.0,0.00022602,2]
[372499692,1752663123144,-460.0,0.00022602,2]
[372499693,1752663123154,-830.15,0.00022602,2]
[372499694,1752663123164,-1181.41,0.00022602,2]
[372499695,1752663123174,-619.04,0.00022602,2]
[372499696,1752663123185,-3400.85,0.00022602,2]
[372499697,1752663123201,-1807.42,0.00022602,2]
[372499698,1752663123211,-460.0,0.00022602,2]
[372499699,1752663123221,-460.0,0.00022602,2]
[372499700,1752663123232,-2724.38,0.00022602,2]
[372499701,1752663123242,-135275.72,0.00022602,2]
[372499702,1752663123252,-1356.39,0.00022602,2]
[372499703,1752663123264,-3360.53,0.00022602,2]
[372499704,1752663123275,-460.0,0.00022602,2]
[372499705,1752663123285,-4311.63,0.00022602,2]
[372499706,1752663123295,-7249.88,0.00022602,2]
[372499707,1752663123305,-1607.81,0.00022602,2]
[372499708,1752663123316,-1218.65,0.00022602,2]
[372499709,1752663123327,-469.05,0.00022602,2]
[372499710,1752663123338,-878.69,0.00022602,2]
[372499711,1752663123348,-908.48,0.00022602,2]
[372499712,1752663123359,-10952.53,0.00022602,2]
[372499713,1752663123369,-2188.41,0.00022602,2]
[372499714,1752663123379,-1585.43,0.00022602,2]
[372499715,1752663123389,-460.0,0.00022602,2]
[372499716,1752663123400,-6933.38,0.00022602,2]
[372499717,1752663123410,-7163.36,0.00022602,2]
[372499718,1752663123421,-460.0,0.00022602,2]
[372499719,1752663123431,-460.0,0.00022602,2]
[372499720,1752663123441,-460.0,0.00022602,2]
[372499721,1752663123452,-13647.01,0.00022602,2]
[372499722,1752663123461,-1251.22,0.00022602,2]
[372499723,1752663123471,-6833.92,0.00022602,2]
[372499724,1752663123482,-5595.33,0.00022602,2]
[372499725,1752663123492,-2582.73,0.00022602,2]
[372499726,1752663123502,-1673.31,0.00022602,2]
[372499727,1752663123512,-8217.22,0.00022602,2]
[372499728,1752663123522,-460.0,0.00022602,2]
[372499729,1752663123658,-4826.81,0.00022602,2]
[372499730,1752663123669,-460.0,0.00022602,2]
[372499731,1752663123679,-743.27,0.00022602,2]
[372499732,1752663123689,-6145.91,0.00022602,2]
[372499733,1752663123699,-1655.82,0.00022602,2]
[372499734,1752663123709,-3760.87,0.00022602,2]